bitfinex/quotes_BTCUSD_20211001
["timestamp","ask_amount","ask_price","bid_price","bid_amount"]
[1633123053647,0.310114,48367.0,48356.0,2.27309252]
[1633123054450,0.26257801,48363.0,48356.0,2.25909252]
[1633123054651,0.26257801,48363.0,48357.0,0.214403]
[1633123054850,0.5376943,48366.0,48357.0,0.214403]
[1633123055252,0.008,48363.0,48357.0,0.003]
[1633123055727,0.318141,48363.0,48358.0,0.03151717]
[1633123055926,0.47223017,48362.0,48358.0,0.03151717]
[1633123056129,0.53149565,48362.0,48358.0,0.03151717]
[1633123056326,0.36563757,48360.0,48358.0,0.03151717]
[1633123056526,0.214403,48359.0,48358.0,0.03151717]
[1633123057127,0.252403,48359.0,48358.0,0.03151717]
[1633123057326,0.25837368,48359.0,48355.0,0.00199091]
[1633123057526,0.20528129,48357.0,48355.0,0.00199091]
[1633123058926,0.214403,48356.0,48355.0,0.00199091]
[1633123061125,0.242403,48356.0,48355.0,0.04752785]
[1633123061526,0.242403,48356.0,48355.0,0.03752785]
[1633123062429,0.014,48355.0,48348.0,0.008]
[1633123062629,0.00120274,48349.0,48348.0,0.008]
[1633123062828,0.21560574,48349.0,48348.0,0.00749292]
[1633123063031,0.52587374,48349.0,48348.0,0.00749292]
[1633123063229,0.81126667,48349.0,48348.0,0.03549292]
[1633123063428,1.3179645,48349.0,48348.0,0.03549292]
[1633123063629,1.05757157,48349.0,48348.0,0.03549292]
[1633123064031,1.11003432,48349.0,48348.0,0.03549292]
[1633123064229,1.33323432,48349.0,48348.0,0.03549292]
[1633123064430,1.11003432,48349.0,48348.0,0.02549292]
[1633123064631,1.08503432,48349.0,48330.0,0.0183]
[1633123064831,0.41771426,48348.0,48331.0,0.24395385]
[1633123065032,0.09581941,48341.0,48332.0,0.0005301]
[1633123065230,0.09581941,48341.0,48331.0,0.24395385]
[1633123065231,0.28692484,48340.0,48331.0,0.24395385]
[1633123065633,0.28692484,48340.0,48332.0,6.493e-05]
[1633123066029,0.19334328,48339.0,48331.0,0.23514875]
[1633123066230,0.25443382,48338.0,48331.0,0.23514875]
[1633123066437,0.20685883,48340.0,48331.0,0.23514875]
[1633123066634,0.28837849,48339.0,48332.0,0.01585857]
[1633123067030,0.55621686,48339.0,48332.0,0.01585857]
[1633123067230,0.58121686,48339.0,48332.0,0.04385857]
[1633123067535,0.23935197,48337.0,48332.0,0.04385857]
[1633123067734,0.25297776,48336.0,48332.0,0.04385857]
[1633123068133,0.0216506,48335.0,48332.0,0.028]
[1633123068531,0.214403,48334.0,48332.0,0.028]
[1633123068938,0.25423207,48333.0,48332.0,0.028]
[1633123069134,0.0216506,48335.0,48331.0,0.23264875]
[1633123069332,0.238403,48334.0,48332.0,0.029]
[1633123069532,0.238403,48334.0,48333.0,0.0005301]
[1633123070534,0.0216506,48335.0,48331.0,0.23214875]
[1633123070935,0.0216506,48335.0,48332.0,0.0005301]
[1633123071137,0.0426506,48335.0,48332.0,0.0005301]
[1633123071336,0.214403,48334.0,48331.0,0.029]
[1633123071543,0.00244661,48332.0,48331.0,0.26114875]
[1633123071737,0.45735906,48332.0,48331.0,0.029]
[1633123071936,0.45735906,48332.0,48331.0,0.26027375]
[1633123071937,1.01567469,48332.0,48331.0,0.26027375]
[1633123072136,1.01567469,48332.0,48331.0,0.27614772]
[1633123072534,0.74507757,48332.0,48331.0,0.24714772]
[1633123072737,0.74507757,48332.0,48331.0,0.01587397]
[1633123072939,0.45735906,48332.0,48331.0,0.24214772]
[1633123073142,0.214403,48332.0,48331.0,0.26114772]
[1633123073337,0.43336713,48346.0,48340.0,0.25984022]
[1633123073338,0.41628469,48341.0,48340.0,0.25984022]
[1633123073537,0.93974372,48341.0,48340.0,0.25984022]
[1633123073940,1.72398787,48341.0,48340.0,0.25984022]
[1633123074141,1.50078787,48341.0,48340.0,0.25984022]
[1633123074337,1.74428621,48341.0,48340.0,0.25984022]
[1633123074539,2.24028621,48341.0,48340.0,0.25984022]
[1633123074736,2.54028621,48341.0,48340.0,0.25984022]
[1633123074937,2.54028621,48341.0,48331.0,0.27627375]
[1633123075139,0.214403,48340.0,48324.0,0.27667375]
[1633123075336,0.214403,48340.0,48325.0,0.22911608]
[1633123075337,0.24754097,48332.0,48325.0,0.22911608]
[1633123075537,0.24754097,48332.0,48325.0,0.1113828]
[1633123075938,0.24754097,48332.0,48325.0,0.11145151]
[1633123076137,0.24754097,48332.0,48325.0,0.11198161]
[1633123076337,0.24754097,48332.0,48325.0,6.871e-05]
[1633123076742,0.310338,48335.0,48325.0,6.871e-05]
[1633123076938,0.214403,48334.0,48329.0,0.00122327]
[1633123077140,0.041,48332.0,48329.0,0.00122327]
[1633123077338,0.041,48332.0,48330.0,0.34963891]
[1633123077538,0.041,48332.0,48331.0,0.4780065]
[1633123077738,0.041,48332.0,48331.0,0.4968366]
[1633123078040,0.041,48332.0,48331.0,0.99480776]
[1633123078236,0.041,48332.0,48331.0,0.51039243]
[1633123078438,0.041,48332.0,48331.0,0.96671129]
[1633123078640,0.23013617,48345.0,48338.0,0.09182393]
[1633123078641,0.28778076,48344.0,48338.0,0.09182393]
[1633123078839,0.214403,48343.0,48335.0,0.0183]
[1633123079039,0.31029,48342.0,48335.0,0.0183]
[1633123079242,0.17669932,48337.0,48335.0,0.0183]
[1633123079437,0.20686573,48342.0,48335.0,0.0183]
[1633123079638,0.214403,48341.0,48335.0,0.0183]
[1633123080240,0.206872,48340.0,48335.0,0.0183]
[1633123080439,0.214403,48339.0,48335.0,0.0183]
[1633123081238,0.23012384,48336.0,48335.0,0.0403]
[1633123081438,0.214403,48336.0,48335.0,0.0403]
[1633123081637,0.031,48339.0,48335.0,0.0403]
[1633123081843,0.214403,48338.0,48335.0,0.0403]
[1633123082037,0.031,48339.0,48335.0,0.0403]
[1633123082436,0.18568111,48336.0,48335.0,0.0183]
[1633123082836,0.51717,48340.0,48335.0,0.0183]
[1633123083037,0.20688391,48337.0,48335.0,0.0183]
[1633123083237,0.024,48336.0,48335.0,0.03415638]
[1633123084637,0.04565624,48336.0,48335.0,0.0183]
[1633123084838,0.02165624,48336.0,48335.0,0.0183]
[1633123085238,0.26205924,48336.0,48335.0,0.0183]
[1633123085444,0.44341976,48336.0,48335.0,0.0183]
[1633123085638,0.75372476,48336.0,48335.0,0.0183]
[1633123085839,0.44341976,48336.0,48335.0,0.0183]
[1633123086043,0.26205924,48336.0,48335.0,0.0183]
[1633123086241,0.04765624,48336.0,48335.0,0.23447392]
[1633123086441,0.04765624,48336.0,48335.0,0.47590011]
[1633123086642,0.02165624,48336.0,48335.0,0.83916736]
[1633123086840,0.02165624,48336.0,48335.0,0.47590011]
[1633123087243,0.02165624,48336.0,48335.0,0.74110011]
[1633123087443,0.20685178,48351.0,48349.0,0.11352437]
[1633123087647,0.214403,48350.0,48349.0,0.11352437]
[1633123087844,0.014,48355.0,48354.0,0.00121805]
[1633123088241,0.23575568,48355.0,48354.0,0.00121805]
[1633123088443,0.014,48355.0,48354.0,0.3328368]
[1633123088645,0.014,48355.0,48354.0,0.61042718]
[1633123089044,0.324196,48355.0,48354.0,0.61042718]
[1633123089245,0.358196,48355.0,48354.0,0.27759038]
[1633123089445,0.567599,48355.0,48354.0,0.02660098]
[1633123089845,0.257403,48355.0,48354.0,0.02660098]
[1633123090044,0.257403,48355.0,48348.0,0.0138301]
[1633123090246,0.214403,48354.0,48350.0,0.27501103]
[1633123090644,0.214403,48354.0,48351.0,0.0005301]
[1633123091245,0.253403,48354.0,48351.0,0.25262429]
[1633123091446,0.253403,48354.0,48350.0,0.27383203]
[1633123091644,0.034,48354.0,48349.0,0.0005301]
[1633123091849,0.214403,48353.0,48348.0,0.0133]
[1633123092046,0.62801829,48353.0,48348.0,0.0133]
[1633123092643,0.20320391,48349.0,48348.0,0.0133]
[1633123093244,0.017,48349.0,48348.0,0.0443]
[1633123094046,0.017,48349.0,48348.0,0.25873585]
[1633123094246,0.017,48349.0,48348.0,0.2853632]
[1633123094647,0.009,48355.0,48348.0,0.2543632]
[1633123094853,0.009,48355.0,48348.0,0.0399602]
[1633123095247,0.038,48355.0,48348.0,0.0649602]
[1633123095650,0.01088617,48354.0,48348.0,0.03833285]
[1633123096651,0.01088617,48354.0,48348.0,0.01333285]
[1633123096850,0.01088617,48354.0,48348.0,0.00833285]
[1633123097051,0.01088617,48354.0,48353.0,0.0012069]
[1633123097255,0.03988617,48354.0,48348.0,0.033121]
[1633123097854,0.03988617,48354.0,48348.0,0.026]
[1633123098053,0.21924538,48352.0,48348.0,0.026]
[1633123098253,0.214403,48351.0,48348.0,0.026]
[1633123098653,0.73146,48351.0,48342.0,0.0183]
[1633123098855,0.00088617,48354.0,48347.0,0.00125109]
[1633123099056,0.00088617,48354.0,48348.0,0.0183]
[1633123099254,0.025,48351.0,48348.0,0.0183]
[1633123099454,0.025,48351.0,48349.0,0.214403]
[1633123099654,0.025,48351.0,48350.0,0.0183]
[1633123099852,0.025,48351.0,48350.0,0.232703]
[1633123100516,0.025,48351.0,48350.0,0.23400273]
[1633123100716,0.009,48355.0,48350.0,0.23400273]
[1633123101120,0.00588986,48354.0,48351.0,0.22580185]
[1633123101315,0.00588986,48354.0,48352.0,0.214403]
[1633123101717,0.00588986,48354.0,48353.0,0.22841589]
[1633123101918,0.00588986,48354.0,48353.0,0.44408413]
[1633123102122,0.00588986,48354.0,48353.0,0.46238413]
[1633123102520,0.00588986,48354.0,48353.0,0.46291423]
[1633123103121,0.00588986,48354.0,48353.0,0.23449834]
[1633123103324,0.00588986,48354.0,48353.0,0.27149834]
[1633123104526,0.00588986,48354.0,48353.0,0.45975114]
[1633123104725,0.00588986,48354.0,48353.0,0.23449834]
[1633123105124,0.009,48355.0,48353.0,0.23449834]
[1633123105329,0.009,48355.0,48354.0,0.214403]
[1633123105528,0.009,48355.0,48354.0,0.232703]
[1633123106527,0.004,48355.0,48354.0,0.232703]
[1633123106729,0.00989716,48355.0,48354.0,0.76996276]
[1633123106931,0.00989716,48355.0,48354.0,0.54462515]
[1633123107129,0.00989716,48355.0,48354.0,0.91889282]
[1633123107329,0.00989716,48355.0,48354.0,0.58462515]
[1633123107532,0.00989716,48355.0,48354.0,0.58409505]
[1633123108331,0.00989716,48355.0,48354.0,0.92437476]
[1633123108730,0.00989716,48355.0,48354.0,0.88437476]
[1633123109131,0.00989716,48355.0,48354.0,0.54462515]
[1633123109332,0.00989716,48355.0,48354.0,0.58162515]
[1633123109931,0.00989716,48355.0,48354.0,0.58109505]
[1633123110332,0.00989716,48355.0,48354.0,0.27097705]
[1633123110735,0.00989716,48355.0,48354.0,0.23397705]
[1633123110933,0.004,48355.0,48354.0,0.26557803]
[1633123111334,0.027,48355.0,48354.0,0.29657803]
[1633123112133,0.03289723,48355.0,48354.0,0.26497705]
[1633123112533,0.03289723,48355.0,48354.0,0.23397705]
[1633123112734,0.00989723,48355.0,48354.0,0.23397705]
[1633123113336,0.00989723,48355.0,48354.0,0.26212505]
[1633123114538,0.00989723,48355.0,48354.0,0.23112505]
[1633123115339,0.00989723,48355.0,48354.0,0.26312505]
[1633123115547,0.000426,48370.0,48362.0,0.18700592]
[1633123115751,0.000426,48370.0,48369.0,0.0012869]
[1633123115946,0.000426,48370.0,48369.0,0.0195869]
[1633123116146,0.000426,48370.0,48369.0,0.234512]
[1633123116342,0.000426,48370.0,48369.0,0.54922897]
[1633123116544,0.000426,48370.0,48369.0,0.91898251]
[1633123117346,0.005426,48370.0,48369.0,1.05679398]
[1633123117750,0.005426,48370.0,48369.0,1.05207901]
[1633123117948,0.0089242,48370.0,48369.0,1.05207901]
[1633123118415,0.0089242,48370.0,48369.0,1.05260911]
[1633123118746,0.0039242,48370.0,48369.0,1.02060911]
[1633123118949,0.0039242,48370.0,48369.0,1.26618643]
[1633123119348,0.0089242,48370.0,48369.0,1.29718643]
[1633123119747,0.0089242,48370.0,48369.0,1.19084486]
[1633123120347,0.0089242,48370.0,48369.0,1.17999371]
[1633123120547,0.0089242,48370.0,48369.0,1.14899371]
[1633123120748,0.0039242,48370.0,48369.0,1.14899371]
[1633123121147,0.0039242,48370.0,48369.0,1.25525125]
[1633123121346,0.0119242,48370.0,48369.0,1.28625125]
[1633123121954,0.008426,48370.0,48369.0,1.28625125]
[1633123122147,0.008426,48370.0,48369.0,1.07515764]
[1633123122549,0.00969404,48370.0,48369.0,1.07515764]
[1633123122748,0.00169404,48370.0,48369.0,1.04415764]
[1633123123148,0.00519224,48370.0,48369.0,1.00967393]
[1633123123348,0.00919224,48370.0,48369.0,1.04067393]
[1633123123751,0.00919224,48370.0,48369.0,0.56466285]
[1633123124751,0.00919224,48370.0,48369.0,0.53366285]
[1633123124952,0.00519224,48370.0,48369.0,0.22366085]
[1633123125352,0.02919224,48370.0,48369.0,0.25366085]
[1633123125753,0.00184651,48389.0,48369.0,0.25366085]
[1633123125754,0.0006,48389.0,48369.0,0.85279046]
[1633123125953,0.0006,48389.0,48379.0,0.00123829]
[1633123126161,0.0006,48389.0,48380.0,0.0188301]
[1633123126162,0.214395,48387.0,48380.0,0.0188301]
[1633123126352,0.0006,48389.0,48380.0,0.0188301]
[1633123126553,0.0006,48389.0,48381.0,0.0005301]
[1633123126754,0.43110142,48387.0,48382.0,0.01824]
[1633123126953,0.2232,48385.0,48382.0,0.01824]
[1633123127156,0.43110142,48387.0,48382.0,0.01824]
[1633123127157,0.214395,48384.0,48382.0,0.01824]
[1633123127415,0.214395,48384.0,48382.0,0.05440915]
[1633123127553,0.09921678,48383.0,48382.0,0.05440915]
[1633123127753,0.31361178,48383.0,48382.0,0.05440915]
[1633123128156,0.62364878,48383.0,48382.0,0.05440915]
[1633123128353,0.62392665,48383.0,48382.0,0.05440915]
[1633123128552,0.84712665,48383.0,48382.0,0.01824]
[1633123128758,0.84965855,48383.0,48382.0,0.01824]
[1633123129153,0.84965855,48383.0,48371.0,0.0183]
[1633123129352,0.31007,48377.0,48371.0,0.0183]
[1633123130155,0.21785003,48376.0,48371.0,0.0183]
[1633123130553,0.52792203,48376.0,48371.0,0.0183]
[1633123130955,0.213595,48375.0,48371.0,0.0183]
[1633123131357,0.213595,48375.0,48371.0,0.0303]
[1633123132361,0.03212,48376.0,48374.0,0.00125351]
[1633123132555,0.03212,48376.0,48372.0,0.22772772]
[1633123132556,0.03212,48376.0,48375.0,0.02004752]
[1633123132759,0.00012,48376.0,48375.0,0.01951742]
[1633123132956,0.00012,48376.0,48375.0,0.05450646]
[1633123133356,0.00012,48376.0,48375.0,0.08450646]
[1633123134157,0.00012,48376.0,48375.0,0.0483]
[1633123134755,0.00012,48376.0,48375.0,0.0183]
[1633123135356,0.01112,48376.0,48375.0,0.0483]
[1633123136758,0.00012,48376.0,48375.0,0.0183]
[1633123137559,0.00412,48376.0,48375.0,0.0483]
[1633123137959,0.00412,48376.0,48375.0,0.0488301]
[1633123138563,0.00412,48376.0,48375.0,0.2232]
[1633123138764,0.00412,48376.0,48375.0,0.6928025]
[1633123138962,0.0006,48389.0,48375.0,0.6928025]
[1633123139167,0.0006,48389.0,48384.0,0.00124583]
[1633123139438,0.00711742,48393.0,48387.0,0.0012419]
[1633123139564,0.17529973,48392.0,48388.0,0.0183]
[1633123139766,0.00711742,48393.0,48388.0,0.0183]
[1633123139962,0.214381,48392.0,48388.0,0.0183]
[1633123140762,0.214381,48392.0,48389.0,0.2969608]
[1633123140965,0.22402214,48391.0,48390.0,0.0183]
[1633123141163,0.00711742,48393.0,48390.0,0.0183]
[1633123141363,0.028,48391.0,48390.0,0.26735359]
[1633123141565,0.028,48391.0,48390.0,0.0433]
[1633123142427,0.00711742,48393.0,48390.0,0.29358412]
[1633123142567,0.00711742,48393.0,48392.0,0.00123803]
[1633123142766,0.00211742,48393.0,48392.0,0.47935113]
[1633123142964,0.00211742,48393.0,48392.0,0.23391903]
[1633123143363,0.00211742,48393.0,48392.0,0.232681]
[1633123143563,0.00211742,48393.0,48392.0,0.0473]
[1633123143968,0.00211742,48393.0,48392.0,0.06532863]
[1633123144564,0.17838928,48393.0,48392.0,0.06532863]
[1633123144963,0.40158928,48393.0,48392.0,0.03632863]
[1633123145166,0.41221082,48393.0,48392.0,0.0183]
[1633123145363,0.41221082,48393.0,48373.0,0.00128523]
[1633123145364,0.09076007,48389.0,48377.0,0.10966292]
[1633123145567,0.28727646,48388.0,48378.0,0.015667]
[1633123145766,0.214381,48387.0,48376.0,0.0183]
[1633123145965,0.0005301,48386.0,48376.0,0.0183]
[1633123146164,0.310029,48381.0,48376.0,0.0183]
[1633123146363,0.214381,48380.0,48370.0,0.0183]
[1633123146568,0.26739415,48379.0,48370.0,0.0183]
[1633123146766,0.26686405,48379.0,48370.0,0.0183]
[1633123146971,0.18683146,48378.0,48370.0,0.0183]
[1633123147164,0.18630136,48378.0,48377.0,0.00120904]
[1633123147365,0.40068236,48378.0,48377.0,0.00120904]
[1633123147564,0.214381,48377.0,48362.0,0.18658715]
[1633123147767,0.28436393,48376.0,48370.0,0.00129788]
[1633123147965,0.0005301,48382.0,48370.0,0.00129788]
[1633123148169,0.15884335,48389.0,48377.0,0.309939]
[1633123148170,0.09076007,48389.0,48377.0,0.309939]
[1633123148432,0.09076007,48389.0,48378.0,0.26367031]
[1633123148565,0.09076007,48389.0,48378.0,0.0183]
[1633123148767,0.09076007,48389.0,48382.0,0.00126442]
[1633123149164,0.09076007,48389.0,48388.0,0.00124135]
[1633123149365,0.30514107,48389.0,48388.0,0.00124135]
[1633123149571,0.33114107,48389.0,48384.0,0.22327664]
[1633123149767,0.11676007,48389.0,48383.0,0.309911]
[1633123150165,0.22889504,48388.0,48384.0,0.214381]
[1633123150565,0.22889504,48388.0,48383.0,0.309911]
[1633123150768,0.01941712,48387.0,48383.0,0.309911]
[1633123150968,0.01941712,48387.0,48386.0,0.00128528]
[1633123151169,0.01941712,48387.0,48386.0,0.50590783]
[1633123151369,0.01941712,48387.0,48386.0,0.23524379]
[1633123151567,0.02341712,48387.0,48386.0,0.26724379]
[1633123151767,0.02341712,48387.0,48386.0,0.57707279]
[1633123151967,0.02341712,48387.0,48386.0,0.98357654]
[1633123152566,0.02341712,48387.0,48386.0,0.86742948]
[1633123152767,0.01941712,48387.0,48386.0,0.83542948]
[1633123152970,0.01941712,48387.0,48386.0,0.52432297]
[1633123153369,0.01941712,48387.0,48386.0,0.52303769]
[1633123153572,0.02441712,48387.0,48386.0,0.55803769]
[1633123154675,0.02441712,48387.0,48386.0,0.55926312]
[1633123154871,0.09076007,48389.0,48386.0,0.52426312]
[1633123155072,0.09076007,48389.0,48386.0,0.54232027]
[1633123155270,0.09076007,48389.0,48386.0,0.53232027]
[1633123155470,0.10176007,48389.0,48386.0,0.56732027]
[1633123156069,0.10176007,48389.0,48386.0,0.54926312]
[1633123156271,0.0194208,48388.0,48386.0,0.54926312]
[1633123156677,0.0194208,48388.0,48386.0,0.54901112]
[1633123156871,0.0194208,48388.0,48386.0,0.51401112]
[1633123157071,0.0194208,48388.0,48386.0,0.30865669]
[1633123157472,0.0264208,48388.0,48386.0,0.34465669]
[1633123158876,0.0194208,48388.0,48386.0,0.30865669]
[1633123159473,0.0234208,48388.0,48386.0,0.34465669]
[1633123160474,0.004,48388.0,48386.0,0.36271164]
[1633123161077,0.313942,48388.0,48386.0,0.36271164]
[1633123161276,0.309942,48388.0,48386.0,0.32671164]
[1633123161476,0.315942,48388.0,48386.0,0.36171164]
[1633123161678,0.01941906,48387.0,48386.0,0.34365669]
[1633123161878,0.20874242,48393.0,48389.0,0.5128812]
[1633123162090,0.0011901,48405.0,48401.0,0.20839627]
[1633123162285,0.02581513,48427.0,48401.0,0.20839627]
[1633123162587,0.00674079,48655.0,48421.0,0.18372429]
[1633123162588,0.16185546,48425.0,48421.0,0.18372429]
[1633123162783,0.1798,48423.0,48415.0,0.0183]
[1633123162979,0.1798,48423.0,48416.0,0.0005301]
[1633123162980,0.17018693,48423.0,48416.0,0.0005301]
[1633123163189,0.309787,48420.0,48415.0,0.26819396]
[1633123163444,0.309787,48420.0,48415.0,0.0138301]
[1633123163581,0.14518693,48423.0,48415.0,0.0038301]
[1633123163784,0.14518693,48423.0,48409.0,0.22278965]
[1633123163785,0.20256728,48411.0,48409.0,0.22278965]
[1633123164185,0.31115071,48410.0,48409.0,0.20448965]
[1633123164380,0.52550371,48410.0,48409.0,0.20448965]
[1633123164580,0.21564971,48410.0,48409.0,0.20448965]
[1633123164784,0.214353,48410.0,48409.0,0.46186864]
[1633123164983,0.20256728,48411.0,48409.0,0.22278965]
[1633123165382,0.20256728,48411.0,48410.0,0.214353]
[1633123165783,0.20256728,48411.0,48409.0,0.25678965]
[1633123165980,0.20256728,48411.0,48410.0,0.02765922]
[1633123166191,0.20726125,48411.0,48410.0,0.02765922]
[1633123167088,0.20726125,48411.0,48409.0,0.25678965]
[1633123167280,0.21705753,48411.0,48409.0,0.22278965]
[1633123167482,0.21705753,48411.0,48410.0,0.031]
[1633123168083,0.21705753,48411.0,48410.0,0.245353]
[1633123168683,0.21705753,48411.0,48410.0,0.24658964]
[1633123168881,0.21705753,48411.0,48410.0,0.21558964]
[1633123169282,0.21205753,48411.0,48410.0,0.21558964]
[1633123169484,0.21205753,48411.0,48410.0,0.82884658]
[1633123169684,0.21205753,48411.0,48410.0,0.61519342]
[1633123169883,0.21205753,48411.0,48410.0,0.85471084]
[1633123170488,0.21233524,48411.0,48410.0,0.26788964]
[1633123171084,0.21233524,48411.0,48410.0,0.25788964]
[1633123171483,0.20253896,48411.0,48410.0,0.28654886]
[1633123172683,0.21233531,48411.0,48410.0,0.24888964]
[1633123173088,0.21233531,48411.0,48410.0,0.21388964]
[1633123173482,0.21233531,48411.0,48410.0,0.25088964]
[1633123174885,0.21213531,48411.0,48410.0,0.21388964]
[1633123175085,0.1905999,48411.0,48410.0,0.21388964]
[1633123175591,0.1905999,48411.0,48410.0,0.25288964]
[1633123176987,0.18080355,48411.0,48410.0,0.24154886]
[1633123177595,0.18080355,48411.0,48410.0,0.27554886]
[1633123177990,0.18080355,48411.0,48410.0,0.64965423]
[1633123178198,0.19059997,48411.0,48410.0,0.62199501]
[1633123178989,0.19059997,48411.0,48410.0,0.21388964]
[1633123179589,0.19059997,48411.0,48410.0,0.24988964]
[1633123179789,0.19059997,48411.0,48410.0,0.26093457]
[1633123180992,0.19059997,48411.0,48410.0,0.06534493]
[1633123181453,0.19059997,48411.0,48410.0,0.02934493]
[1633123181594,0.19059997,48411.0,48410.0,0.27665293]
[1633123181993,0.19059997,48411.0,48410.0,0.50418797]
[1633123182197,0.19059997,48411.0,48410.0,0.47018797]
[1633123182498,0.18080355,48411.0,48410.0,0.47018797]
[1633123182696,0.18080355,48411.0,48410.0,0.49784719]
[1633123183695,0.19060004,48411.0,48410.0,0.50818797]
[1633123183896,0.19060004,48411.0,48410.0,0.49818797]
[1633123185099,0.19060004,48411.0,48410.0,0.46018797]
[1633123185700,0.19060004,48411.0,48410.0,0.49918797]
[1633123185900,0.18560004,48411.0,48410.0,0.49918797]
[1633123186498,0.18560004,48411.0,48410.0,0.28487997]
[1633123186700,0.18560004,48411.0,48410.0,0.23687997]
[1633123186899,0.18560004,48411.0,48410.0,0.19787997]
[1633123187299,0.47302597,48411.0,48410.0,0.41218797]
[1633123187499,0.18560004,48411.0,48410.0,0.41218797]
[1633123187701,0.18560004,48411.0,48410.0,0.44918797]
[1633123187901,0.17580355,48411.0,48410.0,0.49514719]
[1633123188505,0.11240355,48411.0,48410.0,0.49514719]
[1633123188901,0.11240355,48411.0,48410.0,0.45814719]
[1633123189102,0.10740355,48411.0,48410.0,0.43048797]
[1633123189303,0.1172001,48411.0,48410.0,0.43048797]
[1633123189703,0.1172001,48411.0,48410.0,0.46648797]
[1633123190562,0.1172001,48411.0,48410.0,0.25217997]
[1633123190961,0.1172001,48411.0,48410.0,0.21617997]
[1633123191166,0.1172001,48411.0,48410.0,0.43048797]
[1633123191562,0.1122001,48411.0,48410.0,0.46648797]
[1633123192360,0.1122001,48411.0,48410.0,0.77623097]
[1633123192963,0.1122001,48411.0,48410.0,0.74023097]
[1633123193162,0.1122001,48411.0,48410.0,0.73764156]
[1633123193362,0.10240355,48411.0,48410.0,0.73764156]
[1633123193565,0.10240355,48411.0,48410.0,0.80430078]
[1633123194765,0.11220017,48411.0,48410.0,0.77664156]
[1633123194965,0.11220017,48411.0,48410.0,0.73764156]
[1633123195164,0.10720017,48411.0,48410.0,0.73764156]
[1633123195565,0.10720017,48411.0,48410.0,0.77564156]
[1633123196169,0.10720017,48411.0,48410.0,1.14903081]
[1633123196976,0.10720017,48411.0,48410.0,1.11103081]
[1633123197578,0.10720017,48411.0,48410.0,1.14803081]
[1633123198581,0.10720017,48411.0,48410.0,0.82817843]
[1633123198781,0.10720017,48411.0,48410.0,0.579351]
[1633123198983,0.10720017,48411.0,48410.0,0.542351]
[1633123199581,0.10720017,48411.0,48410.0,0.63392613]
[1633123199981,0.10720017,48411.0,48410.0,0.85708116]
[1633123200982,0.10720017,48411.0,48410.0,0.85527463]
[1633123201586,0.10720017,48411.0,48410.0,0.85427463]
[1633123202986,0.10720017,48411.0,48410.0,0.81727463]
[1633123203586,0.10720017,48411.0,48410.0,0.85427463]
[1633123204986,0.10720017,48411.0,48410.0,1.13050399]
[1633123205587,0.10720017,48411.0,48410.0,1.16450399]
[1633123206388,0.10720017,48411.0,48410.0,1.16456399]
[1633123207190,0.10720017,48411.0,48410.0,0.8458637]
[1633123207594,0.10720017,48411.0,48410.0,0.8118637]
[1633123207788,0.10720017,48411.0,48410.0,0.8488637]
[1633123208188,0.10720017,48411.0,48410.0,1.17536919]
[1633123209190,0.10720017,48411.0,48410.0,1.13836919]
[1633123209591,0.10755883,48411.0,48410.0,1.13836919]
[1633123209794,0.10755883,48411.0,48410.0,1.17536919]
[1633123209993,0.10755883,48411.0,48410.0,0.8488637]
[1633123210194,0.10755883,48411.0,48410.0,0.8460227]
[1633123210993,0.10755883,48411.0,48410.0,0.58586767]
[1633123211595,0.10755883,48411.0,48410.0,0.58707775]
[1633123211792,0.10755883,48411.0,48410.0,0.62907775]
[1633123211997,0.017198,48415.0,48410.0,0.62907775]
[1633123212195,0.017198,48415.0,48414.0,0.00129073]
[1633123212396,0.017198,48415.0,48414.0,0.44200783]
[1633123212594,0.017198,48415.0,48414.0,0.89556045]
[1633123213601,0.017198,48415.0,48414.0,0.95051664]
[1633123213795,0.017198,48415.0,48414.0,1.24127445]
[1633123214394,0.017198,48415.0,48414.0,0.90641366]
[1633123214597,0.017198,48415.0,48414.0,0.78772183]
[1633123214793,0.017198,48415.0,48414.0,0.71160265]
[1633123214993,0.017198,48415.0,48414.0,0.71166265]
[1633123215195,0.017198,48415.0,48414.0,0.67566265]
[1633123215793,0.017198,48415.0,48414.0,0.71666265]
[1633123216993,0.017198,48415.0,48414.0,0.67566265]
[1633123217796,0.017198,48415.0,48414.0,0.71566265]
[1633123218598,0.017198,48415.0,48414.0,0.94381051]
[1633123218798,0.017198,48415.0,48414.0,1.06412074]
[1633123218996,0.017198,48415.0,48414.0,1.07908373]
[1633123219197,0.017198,48415.0,48414.0,1.02412074]
[1633123219801,0.017198,48415.0,48414.0,1.11306417]
[1633123220199,0.017198,48415.0,48414.0,0.76460608]
[1633123220999,0.017198,48415.0,48414.0,1.00085578]
[1633123221299,0.017198,48415.0,48414.0,1.26758615]
[1633123221701,0.017198,48415.0,48414.0,1.06874165]
[1633123222701,0.017198,48415.0,48414.0,1.06998586]
[1633123222901,0.012198,48415.0,48414.0,1.03498586]
[1633123223100,0.012198,48415.0,48414.0,1.0350111]
[1633123223299,0.012198,48415.0,48414.0,1.25822815]
[1633123223499,0.012198,48415.0,48414.0,1.03502815]
[1633123223700,0.012198,48415.0,48414.0,1.06902815]
[1633123225100,0.012198,48415.0,48414.0,1.03502815]
[1633123225707,0.012198,48415.0,48414.0,1.06802815]
[1633123226504,0.012198,48415.0,48414.0,0.7648919]
[1633123226706,0.01711114,48415.0,48414.0,0.7954319]
[1633123227108,0.01711114,48415.0,48414.0,0.7624319]
[1633123227708,0.01711114,48415.0,48414.0,0.58705859]
[1633123227907,0.01711114,48415.0,48414.0,0.5972253]
[1633123228307,0.01711114,48415.0,48414.0,0.53207355]
[1633123228507,0.01711114,48415.0,48414.0,0.5972876]
[1633123228711,0.19867672,48415.0,48414.0,0.0849]
[1633123228910,0.74599059,48415.0,48414.0,0.0849]
[1633123229111,0.75113342,48415.0,48414.0,0.0509]
[1633123229309,0.70408962,48415.0,48414.0,0.0509]
[1633123229777,0.23265998,48415.0,48414.0,0.0859]
[1633123229978,0.01711114,48415.0,48414.0,0.18857815]
[1633123230182,0.01711114,48415.0,48414.0,0.0859]
[1633123231578,0.01711114,48415.0,48414.0,0.14976294]
[1633123231778,0.01711114,48415.0,48414.0,0.18676294]
[1633123232278,0.012198,48415.0,48414.0,0.59269833]
[1633123232475,0.012198,48415.0,48414.0,0.52069833]
[1633123232878,0.00025353,48429.0,48415.0,0.487802]
[1633123233079,0.36469289,48427.0,48420.0,0.20645631]
[1633123233479,0.0005301,48426.0,48420.0,0.20645631]
[1633123234083,0.0005301,48426.0,48425.0,0.20645631]
[1633123234483,0.21553836,48426.0,48425.0,0.20645631]